bitfinex/quotes_ETHUSD_20241001
["timestamp","ask_amount","ask_price","bid_price","bid_amount"]
[1727791180580,1.5446,2585.5,2585.1,3.8682]
[1727791180766,1.5446,2585.5,2585.3,3.86802]
[1727791180937,1.5446,2585.5,2585.1,3.86819]
[1727791181134,1.5446,2585.5,2585.2,3.86809]
[1727791182372,1.5446,2585.5,2584.8,3.86866]
[1727791182548,1.5446,2585.5,2585.2,7.73618]
[1727791182791,1.5446,2585.5,2585.2,3.86809]
[1727791183056,4.48007474,2586.0,2585.0,5.27815]
[1727791183057,1.4376,2585.9,2585.0,5.27815]
[1727791183364,1.4376,2585.9,2585.5,3.86765]
[1727791183752,1.4376,2585.9,2585.3,3.86795]
[1727791183936,1.4376,2585.9,2585.2,3.86816]
[1727791183937,4.48007474,2585.7,2585.2,3.86816]
[1727791184139,1.528,2585.6,2585.1,3.0]
[1727791184372,4.48007474,2585.4,2584.9,3.86855]
[1727791184541,4.48007474,2585.4,2585.0,3.8684]
[1727791184744,1.528,2585.6,2584.9,6.86861]
[1727791185051,0.926305,2585.5,2584.9,6.86861]
[1727791185293,5.40637974,2585.5,2584.9,6.86861]
[1727791185564,0.33028465,2585.4,2584.9,6.86861]
[1727791185738,5.40637974,2585.5,2584.9,3.0]
[1727791186078,5.40637974,2585.5,2584.9,6.86855]
[1727791186449,5.40637974,2585.5,2585.0,3.86847]
[1727791186851,0.3303003,2585.4,2585.0,3.86847]
[1727791187052,5.40637974,2585.5,2585.0,3.86844]
[1727791187385,0.33061106,2585.4,2585.0,3.86844]
[1727791187597,1.528,2585.6,2585.1,3.86819]
[1727791187888,5.82495395,2586.4,2585.5,3.0]
[1727791187889,1.4193,2586.0,2585.5,3.0]
[1727791188095,1.4193,2586.0,2585.4,1.456]
[1727791188096,1.4193,2586.0,2585.8,3.86721]
[1727791188245,0.33109117,2585.9,2585.8,3.86721]
[1727791188440,1.4193,2586.0,2585.8,3.86721]
[1727791188691,0.33105583,2585.9,2585.8,3.86721]
[1727791189571,0.33105583,2585.9,2585.8,4.38473305]
[1727791189793,1.4111,2586.3,2586.0,3.86696]
[1727791189942,1.4111,2586.3,2585.6,3.0]
[1727791189943,0.33134819,2585.9,2585.6,3.0]
[1727791190342,1.4111,2585.7,2585.6,3.86757]
[1727791190501,2.27261943,2585.7,2585.5,3.8677]
[1727791190651,0.86180822,2585.6,2585.5,3.8677]
[1727791192131,0.33134819,2585.6,2585.5,3.8677]
[1727791192269,0.86203242,2585.6,2585.5,3.8677]
[1727791193129,0.86203242,2585.8,2585.5,3.8677]
[1727791193408,0.53068755,2585.6,2585.5,3.8677]
[1727791193575,0.86236727,2585.6,2585.5,3.8677]
[1727791193787,0.86236727,2585.6,2585.4,3.86786]
[1727791193985,6.28995446,2585.5,2584.9,3.86859]
[1727791194187,2.65509507,2585.4,2584.5,3.86918]
[1727791194417,0.86238864,2585.3,2585.2,3.86804]
[1727791194914,2.31885098,2585.8,2585.4,3.86778]
[1727791195211,0.86269004,2585.7,2585.4,3.86778]
[1727791195522,0.86269004,2585.6,2585.4,3.86778]
[1727791196182,0.86269004,2585.6,2585.2,6.86807]
[1727791196183,1.63964102,2585.6,2585.2,6.86807]
[1727791196384,0.77695098,2585.6,2585.3,3.86793]
[1727791196750,0.86308278,2585.5,2585.4,3.86778]
[1727791196886,0.86308278,2585.5,2585.2,6.86805]
[1727791197073,1.64003376,2585.5,2585.2,10.73614]
[1727791197275,1.64003376,2585.5,2584.7,1.5645]
[1727791197276,0.86308278,2585.4,2584.7,1.5645]
[1727791197522,3.18133376,2585.3,2584.7,3.8688]
[1727791197719,0.86308278,2585.2,2584.7,3.8688]
[1727791198016,0.77695098,2585.0,2584.9,3.8685]
[1727791198217,2.31825098,2585.3,2585.1,3.86832]
[1727791198421,2.31825098,2585.3,2585.0,3.86845]
[1727791198422,1.64011637,2585.2,2585.0,3.86845]
[1727791198572,0.86316539,2585.1,2585.0,3.86845]
[1727791198774,0.33198669,2585.1,2585.0,3.86845]
[1727791199274,0.77695098,2585.4,2585.0,3.86845]
[1727791199275,0.53144686,2585.3,2585.2,3.86817]
[1727791199489,0.86361029,2585.3,2585.2,3.86817]
[1727791199692,0.33215464,2585.3,2585.2,3.86817]
[1727791200089,0.86360224,2585.3,2585.2,3.86817]
[1727791200290,0.77695098,2585.4,2585.3,3.86802]
[1727791200581,0.77695098,2585.4,2582.7,17.16344501]
[1727791200582,0.83238881,2585.4,2584.8,3.86865]
[1727791200821,0.83238881,2585.4,2584.0,0.80516327]
[1727791200822,4.48007474,2585.1,2584.0,0.80516327]
[1727791201124,0.78796862,2584.9,2584.4,3.86925]
[1727791201307,0.86364138,2585.0,2583.9,0.80516327]
[1727791201308,0.7878102,2584.6,2583.9,0.80516327]
[1727791201616,4.48007474,2584.7,2583.8,0.80516327]
[1727791201617,5.98487474,2584.0,2583.8,0.80516327]
[1727791201772,5.98487474,2584.0,2583.4,3.87086]
[1727791201773,1.12995845,2583.9,2583.4,3.87086]
[1727791201977,1.12995845,2583.9,2583.3,1.72404201]
[1727791201978,0.53147098,2583.8,2583.3,1.72404201]
[1727791202181,1.5345,2583.5,2583.3,1.72404201]
[1727791202416,2.7000822,2583.5,2583.3,1.72404201]
[1727791202617,1.1655822,2583.4,2583.3,1.51212202]
[1727791202818,0.78577879,2583.4,2583.3,1.51212202]
[1727791203024,1.1655822,2583.6,2583.5,3.87071]
[1727791203322,5.64565694,2583.6,2583.3,1.51212202]
[1727791203502,0.33132007,2583.4,2583.3,1.51212202]
[1727791203820,0.33132007,2583.5,2583.3,1.51212202]
[1727791204025,1.69525473,2583.6,2583.3,5.38313202]
[1727791204244,1.69525473,2583.6,2583.4,3.87083]
[1727791204538,1.69525473,2583.6,2583.5,5.38351]
[1727791205142,1.1655822,2583.6,2583.5,8.38351]
[1727791205804,1.1655822,2583.6,2583.5,8.93351]
[1727791206008,2.35733202,2584.0,2583.8,2.0]
[1727791206235,1.91033544,2584.7,2584.4,6.86937]
[1727791206538,4.57966953,2585.4,2585.3,7.41802]
[1727791206758,4.57966953,2585.4,2585.3,6.86802]
[1727791206893,4.57966953,2585.4,2585.3,12.32991935]
[1727791207089,5.61364221,2585.6,2585.5,7.25522]
[1727791207353,5.61364221,2585.6,2585.5,12.24295144]
[1727791207527,5.61364221,2585.6,2585.5,45.78182244]
[1727791207695,5.61364221,2585.6,2585.5,8.29932]
[1727791207889,5.61364221,2585.6,2585.4,3.0]
[1727791208094,5.61364221,2585.6,2585.5,3.0]
[1727791208095,1.68821119,2585.6,2585.5,3.0]
[1727791208737,1.68821119,2585.6,2585.1,3.86824]
[1727791208954,1.68821119,2585.6,2584.9,5.35001]
[1727791208955,1.68821119,2585.6,2584.9,1.4814]
[1727791209152,4.99591221,2585.3,2584.7,3.86886]
[1727791209368,4.99591221,2584.9,2584.4,3.86923]
[1727791209545,4.99591221,2584.9,2584.4,3.86931]
[1727791209712,4.99591221,2584.9,2584.0,5.37582]
[1727791209916,4.99591221,2584.9,2584.4,3.86932]
[1727791210226,4.99591221,2584.9,2584.4,3.86935]
[1727791210227,0.3307704,2584.8,2584.4,3.86935]
[1727791210409,4.99591221,2584.9,2584.1,3.8698]
[1727791210614,8.86518221,2584.5,2583.6,0.80516327]
[1727791210979,1.5284,2584.3,2583.4,0.80516327]
[1727791211121,1.5569,2584.8,2584.2,3.86958]
[1727791211447,1.5569,2584.8,2583.8,0.80516327]
[1727791211448,4.99591221,2584.4,2583.8,0.80516327]
[1727791211669,4.99591221,2584.0,2583.7,0.80516327]
[1727791211811,4.99591221,2584.0,2583.6,0.80516327]
[1727791212010,4.99591221,2584.0,2583.5,0.80516327]
[1727791212015,1.4122,2583.9,2583.5,0.80516327]
[1727791212211,1.4122,2583.9,2583.6,4.67569327]
[1727791212455,1.5104,2584.3,2583.7,4.67555327]
[1727791212771,1.5104,2584.3,2583.8,4.67537327]
[1727791213063,1.5104,2584.3,2583.8,0.80516327]
[1727791213209,1.5104,2584.3,2583.9,0.80516327]
[1727791213411,3.86708,2586.0,2583.9,0.80516327]
[1727791213412,4.99591221,2584.8,2583.9,0.80516327]
[1727791213712,1.5225,2584.7,2584.2,3.86954]
[1727791213948,1.5225,2584.7,2584.2,0.80516327]
[1727791214269,4.99591221,2584.4,2584.3,0.80516327]
[1727791214410,1.5225,2584.7,2584.2,0.80516327]
[1727791214606,0.05,2586.9,2584.2,0.80516327]
[1727791214607,6.48631221,2585.2,2584.7,3.0]
[1727791214841,6.48631221,2585.2,2584.5,3.86921]
[1727791215046,6.48631221,2585.2,2584.6,3.0]
[1727791215255,6.48631221,2585.2,2584.3,2.01223231]
[1727791215256,6.48631221,2585.2,2584.3,0.80516327]
[1727791215456,6.48631221,2585.2,2584.6,3.86904]
[1727791215637,1.4904,2585.2,2584.7,0.07738193]
[1727791215840,4.99591221,2585.6,2585.1,3.86832]
[1727791215841,6.48121221,2585.6,2585.1,3.86832]
[1727791216163,6.48121221,2585.6,2584.5,6.86922]
[1727791216164,6.48121221,2585.6,2584.6,3.0]
[1727791216368,6.48121221,2585.6,2584.5,3.86917]
[1727791216369,4.99591221,2585.3,2584.8,3.86875]
[1727791216509,4.99591221,2584.9,2584.5,3.0]
[1727791216735,4.99591221,2584.9,2583.8,1.4558]
[1727791216936,4.99591221,2585.3,2584.5,3.8691]
[1727791217183,0.82571174,2585.2,2584.6,3.86904]
[1727791217338,0.49959122,2585.2,2584.4,3.86932]
[1727791217539,0.49959122,2585.2,2584.1,3.0]
[1727791217540,0.49959122,2585.2,2584.3,3.86949]
[1727791217785,0.49959122,2585.2,2584.4,3.0]
[1727791217986,4.99591221,2585.3,2584.5,3.86921]
[1727791218168,0.64812122,2585.5,2584.2,3.0]
[1727791218169,1.5174,2584.8,2584.2,3.0]
[1727791218482,0.64812122,2585.5,2584.5,3.8692]
[1727791218483,6.51331221,2585.4,2584.5,3.8692]
[1727791218785,1.5174,2585.4,2584.9,3.86858]
[1727791219090,1.5174,2586.0,2585.4,3.86773]
[1727791219240,1.5174,2586.0,2585.0,6.86842]
[1727791219590,4.99591221,2585.8,2585.0,6.86842]
[1727791219809,1.5174,2586.0,2585.0,3.0]
[1727791219937,3.64705738,2587.3,2585.0,3.0]
[1727791219938,3.39240285,2586.6,2586.0,3.86696]
[1727791220275,3.96683148,2586.6,2586.1,3.0]
[1727791220479,2.00692863,2586.6,2586.1,3.0]
[1727791220683,2.00692863,2586.6,2585.8,3.86723]
[1727791220979,4.99591221,2586.3,2585.5,3.0]
[1727791221301,1.4207,2587.0,2585.5,3.0]
[1727791221460,3.92543102,2587.5,2587.3,3.86498]
[1727791221786,3.92543102,2587.5,2587.4,6.86488]
[1727791221954,3.92543102,2587.5,2587.4,3.0]
[1727791222155,3.92543102,2587.5,2587.4,6.86488]
[1727791222343,3.92543102,2587.5,2586.7,1.56]
[1727791222544,3.92543102,2587.5,2587.1,3.86531]
[1727791222545,4.31797412,2587.5,2587.1,3.86531]
[1727791222775,4.31797412,2587.5,2586.9,6.86561]
[1727791222974,1.5092,2587.4,2586.6,3.86607]
[1727791223176,1.5092,2587.4,2586.9,3.86554]
[1727791223490,1.5092,2587.4,2586.4,3.0]
[1727791223491,0.58271741,2587.3,2586.5,3.86609]
[1727791223848,0.55,2587.2,2586.5,3.86609]
[1727791224044,0.55,2587.2,2586.3,3.86646]
[1727791224248,1.5132,2587.0,2586.2,3.86665]
[1727791224450,1.5132,2587.0,2586.1,3.86678]
[1727791224666,1.20091122,2586.9,2585.4,1.5311]
[1727791224896,0.55,2586.4,2585.7,3.86741]
[1727791225186,1.5204,2586.5,2586.0,3.86683]
[1727791225404,0.55,2586.4,2585.8,3.86727]
[1727791225544,0.55,2586.4,2585.1,3.86819]
[1727791225545,1.95873129,2585.9,2585.6,3.86754]
[1727791225751,2.94926381,2586.3,2585.7,3.86742]
[1727791225752,1.95873129,2586.0,2585.7,3.86742]
[1727791225945,1.95873129,2586.0,2585.0,0.07735208]
[1727791225946,1.95873129,2586.2,2586.0,3.86697]
[1727791226147,2.41035617,2586.2,2585.3,3.86802]
[1727791226391,1.95873129,2586.1,2585.9,3.86708]
[1727791226694,0.45162488,2586.2,2585.1,3.86824]
[1727791226695,0.45162488,2586.2,2585.5,3.86757]
[1727791226857,1.95873129,2586.2,2585.6,3.86756]
[1727791227047,1.95873129,2586.1,2586.0,3.86697]
[1727791227248,1.95873129,2586.2,2586.0,3.86697]
[1727791227658,3.87087755,2586.5,2586.1,3.86682]
[1727791227659,2.35047755,2586.4,2586.1,3.86682]
[1727791227885,1.95901096,2586.2,2586.1,6.86682]
[1727791228254,2.35047755,2586.4,2586.2,3.86667]
[1727791228476,2.35047755,2586.4,2586.1,3.0]
[1727791228477,3.23925188,2586.6,2586.5,3.86622]
[1727791228793,2.23521122,2586.9,2586.5,3.86622]
[1727791228794,2.74284884,2586.7,2586.5,3.86622]
[1727791228952,2.74284884,2586.7,2586.6,3.86607]
[1727791229293,2.74284884,2586.9,2586.5,3.86621]
[1727791229506,2.74304972,2586.9,2586.7,3.86592]
[1727791229648,2.74304972,2586.9,2586.8,6.86578]
[1727791230193,2.7432765,2587.0,2586.9,3.86549]
[1727791230556,3.8641,2588.0,2586.9,3.86549]
[1727791230557,3.24049537,2587.1,2586.9,3.86549]
[1727791230758,3.24049537,2587.2,2587.0,3.86545]
[1727791230954,3.24049537,2587.2,2587.0,3.0]
[1727791231190,3.24049537,2587.4,2587.2,3.86518]
[1727791231366,3.24049537,2587.5,2587.3,6.86503]
[1727791231713,3.24049537,2587.7,2587.6,3.86458]
[1727791232351,3.24049537,2587.8,2587.6,3.86458]
[1727791232551,0.55,2587.7,2587.0,3.86544]
[1727791232791,2.35133392,2587.2,2587.1,6.94246306]
[1727791232950,2.35133392,2587.3,2587.2,3.86518]
[1727791233152,2.74322291,2587.4,2587.3,6.86503]
[1727791233405,3.24049537,2587.6,2587.4,3.86488]
[1727791233603,3.24157112,2587.6,2587.5,3.86466]
[1727791233766,3.24157112,2587.6,2586.6,1.5701]
[1727791233767,0.71670021,2587.6,2586.6,1.5701]
[1727791233975,2.35204438,2587.1,2587.0,3.86546]
[1727791234160,2.35204438,2587.2,2587.1,3.86533]
[1727791234361,2.35178757,2587.2,2587.1,3.86533]
[1727791234702,2.35178757,2587.2,2586.9,3.86549]
[1727791234899,2.35178757,2587.3,2587.2,3.86518]
[1727791235200,2.35178757,2587.4,2587.3,3.86503]
[1727791235581,2.35178757,2587.4,2587.3,6.86503]
[1727791235859,2.35178757,2587.4,2587.2,3.86518]
[1727791235860,2.35178757,2587.5,2587.4,6.86488]
[1727791236063,2.35178757,2587.6,2587.5,6.86473]
[1727791236353,2.74375217,2587.8,2587.7,3.86443]
[1727791236514,2.74375217,2587.9,2587.8,3.86428]
[1727791237156,2.74375217,2587.9,2587.8,6.86428]
[1727791237463,2.74375217,2588.0,2587.9,6.86413]
[1727791237643,2.74375217,2588.2,2588.1,3.86383]
[1727791237952,1.6152,2588.8,2588.2,3.86368]
[1727791237953,2.74375217,2588.3,2588.2,3.86368]
[1727791238177,2.74375217,2588.4,2587.9,3.0]
[1727791238458,2.74375217,2588.4,2586.8,4.31578371]
[1727791238459,2.35213283,2588.0,2587.3,3.86488]
[1727791238668,2.35213283,2587.9,2587.3,3.86488]
[1727791238817,2.35213283,2587.8,2587.4,3.86486]
[1727791239015,1.5182,2587.7,2586.5,1.6496]
[1727791239245,1.5182,2587.7,2587.2,3.86507]
[1727791239647,1.5182,2587.7,2587.1,3.86527]
[1727791239648,2.35213283,2587.5,2587.3,3.86502]
[1727791239845,2.35213283,2587.6,2586.5,5.51577]
[1727791240060,2.3506223,2587.6,2587.5,3.86473]
[1727791240264,2.3506223,2587.6,2587.5,3.0]
[1727791240537,4.84655725,2588.1,2587.8,3.86428]
[1727791240538,5.53093102,2588.1,2587.8,3.86428]
[1727791240749,5.53093102,2588.1,2587.7,3.0]
[1727791240750,4.84506526,2588.1,2587.7,3.0]
[1727791240955,4.99591221,2588.0,2586.8,3.86574]
[1727791241156,6.50651221,2587.4,2586.9,3.86562]
[1727791241369,1.5106,2587.4,2587.1,3.86523]
[1727791241575,1.5106,2587.4,2587.0,3.86539]
[1727791241576,3.86154589,2587.4,2587.0,3.86539]
[1727791241797,3.86154589,2587.4,2586.9,3.86561]
[1727791242092,4.52198903,2587.4,2586.3,1.5421]
[1727791242298,3.86528,2587.2,2586.3,3.86647]
[1727791242503,4.99591221,2587.0,2586.4,3.86627]
[1727791242702,4.99591221,2587.0,2585.9,5.40917]
[1727791242703,2.06,2586.8,2586.1,3.86678]
[1727791243046,2.06,2586.8,2585.9,5.40919]
[1727791243047,5.92589,2586.8,2586.0,3.86691]
[1727791243184,5.92589,2586.8,2586.6,3.86607]
[1727791243185,1.51,2586.8,2586.6,3.86607]
[1727791243509,2.74148759,2587.5,2586.9,3.8655]
[1727791243510,1.51,2587.2,2586.9,3.8655]
[1727791243656,1.51,2587.2,2586.7,3.86584]
[1727791243850,1.51,2587.2,2586.9,3.86561]
[1727791244053,1.51,2587.2,2586.7,3.86584]
[1727791244290,1.51,2587.2,2586.9,3.86559]
[1727791244594,2.3496994,2587.6,2586.9,3.86559]
[1727791244595,1.51,2587.6,2587.1,3.86529]
[1727791244752,2.5565557,2587.6,2587.1,7.73053]
[1727791244950,1.51,2587.6,2587.2,3.0]
[1727791245154,1.5848,2587.9,2587.5,3.86472]
[1727791245354,1.5848,2587.9,2587.4,3.86479]
[1727791246003,1.5848,2587.9,2587.3,3.0]
[1727791246207,1.5848,2587.9,2587.0,3.0]
[1727791246406,1.5848,2587.9,2587.1,0.04881059]
[1727791246596,1.5848,2587.9,2587.2,3.86508]
[1727791247106,5.44895,2587.9,2587.2,3.86508]
[1727791247316,1.6448,2587.2,2586.8,3.8657]
[1727791247510,1.6448,2587.7,2586.5,3.86621]
[1727791247710,1.6448,2587.7,2586.3,1.96083022]
[1727791247711,9.41058221,2587.6,2586.8,3.86568]
[1727791247871,4.99591221,2587.6,2586.8,3.86564]
[1727791248071,0.66407122,2587.5,2586.6,3.86598]
[1727791248272,0.55,2587.6,2587.1,3.86519]
[1727791248474,4.41463,2587.6,2586.7,3.86583]
[1727791248717,9.41059221,2587.6,2586.4,3.86636]
[1727791248913,9.41059221,2587.6,2586.3,1.517]
[1727791248914,9.41059221,2587.6,2586.5,6.86617]
[1727791249122,6.2137094,2588.0,2586.3,3.86643]
[1727791249123,6.54621221,2587.2,2586.3,3.86643]
[1727791249417,1.5384,2586.7,2586.4,3.86631]
[1727791249620,0.55,2586.6,2585.6,1.5527]
[1727791249788,0.55,2586.6,2585.5,3.86761]
[1727791249789,1.5384,2586.2,2585.5,3.86761]
[1727791249974,1.5384,2586.2,2585.9,3.86701]
[1727791250317,3.86603,2586.7,2585.9,3.86703]
[1727791250318,0.55,2586.7,2585.9,3.86703]
[1727791250488,4.41596,2586.7,2586.0,3.86688]
[1727791250720,4.41596,2586.7,2585.4,0.80773096]
[1727791250721,1.5315,2586.0,2585.4,0.80773096]
[1727791250917,1.5315,2586.0,2585.6,3.86746]
[1727791251431,4.99591221,2586.4,2585.8,3.86717]
[1727791251747,4.99591221,2586.4,2585.5,3.86771]
[1727791251748,1.6436,2586.0,2585.5,3.86771]
[1727791251946,1.6436,2586.6,2585.7,3.86739]
[1727791252147,1.6436,2587.1,2585.9,1.531]
[1727791252442,1.6436,2587.1,2586.7,3.86591]
[1727791252603,1.6436,2587.1,2586.9,3.86562]
[1727791252807,8.86060221,2587.6,2586.9,3.86552]
[1727791253131,4.99591221,2587.6,2586.5,4.5319]
[1727791253350,1.5834,2587.7,2587.2,3.86517]
[1727791253525,2.128163,2587.7,2587.0,3.8654]
[1727791254085,8.86059221,2587.6,2586.8,3.86567]
[1727791254209,8.86059221,2587.6,2586.9,3.86562]
[1727791254453,0.55,2587.5,2586.9,3.86562]
[1727791254684,4.41482,2587.5,2586.6,6.86602]
[1727791254870,1.5834,2587.7,2586.9,3.86558]
[1727791255077,1.5834,2587.7,2587.0,3.0]
[1727791255261,1.5043,2588.1,2587.2,1.5232]
[1727791255451,6.02886633,2588.1,2587.2,5.38831]
[1727791255666,2.16502633,2588.1,2587.4,3.86488]
[1727791255866,1.5043,2588.1,2587.4,3.86488]
[1727791256064,1.5043,2588.1,2587.4,3.0]
[1727791256268,1.5043,2588.1,2587.4,3.86488]
[1727791256493,1.5043,2588.1,2587.2,1.5232]
[1727791256770,1.5043,2588.1,2587.4,3.0]
[1727791256969,2.041097,2588.1,2587.5,3.86473]
[1727791257206,2.041097,2588.1,2587.3,3.0]
[1727791257404,4.99591221,2587.8,2587.3,6.86502]
[1727791257667,1.5615,2588.1,2587.5,3.86461]
[1727791257880,1.5615,2588.1,2587.6,3.86453]
[1727791258102,1.5615,2588.1,2587.4,3.0]
[1727791258502,1.5615,2588.1,2587.5,3.86469]
[1727791258792,3.0,2588.8,2587.4,3.0]
[1727791258793,1.5238,2588.5,2587.9,3.8641]
[1727791259117,1.5238,2588.5,2588.0,3.0]
[1727791259486,1.5238,2588.5,2588.1,3.86373]
[1727791259692,1.5238,2588.5,2587.9,6.86409]
[1727791259889,1.5238,2588.5,2587.9,6.86404]
[1727791260241,1.6551,2589.0,2588.3,3.8635]
[1727791260539,1.6551,2589.0,2587.7,5.39733]
[1727791260540,4.99591221,2588.7,2588.1,3.0]
[1727791260765,1.5897,2588.9,2588.0,1.6113]
[1727791260975,2.35305341,2589.2,2588.0,1.6113]
[1727791261262,2.35305341,2589.2,2587.7,4.99591221]
[1727791261263,2.35305341,2589.3,2589.1,3.86232]
[1727791261565,4.99591221,2589.3,2588.7,3.8628]
[1727791261742,2.35305341,2589.4,2588.8,3.86265]
[1727791261946,2.35305341,2589.4,2588.4,3.86337]
[1727791261947,2.74522898,2589.5,2589.3,3.86192]
[1727791262263,2.74522898,2589.5,2589.4,6.86189]
[1727791262471,2.74522898,2589.5,2589.4,3.0]
[1727791262774,0.59880307,2589.5,2588.7,1.6082]
[1727791262915,1.6652,2589.1,2588.0,5.47213]
[1727791263116,1.6652,2589.1,2588.2,3.86356]
[1727791263358,1.6652,2589.1,2588.4,3.86337]
[1727791263559,0.552739,2589.0,2588.4,3.86337]
[1727791263771,1.6652,2589.1,2588.4,3.86337]
[1727791263917,1.556,2589.6,2588.5,1.6451553]
[1727791264118,1.556,2589.6,2589.2,3.86213]
[1727791264329,1.556,2589.6,2588.8,3.86275]
[1727791264568,1.556,2589.6,2588.9,3.86249]
[1727791264717,5.4176,2589.6,2588.8,3.0]
[1727791264912,5.4176,2589.6,2588.6,3.0]
[1727791265117,5.4176,2589.6,2588.8,3.0]
[1727791265453,1.19229922,2589.5,2588.8,3.0]
[1727791265667,0.86604017,2589.5,2588.6,3.0]
[1727791265868,4.99591221,2589.0,2587.9,1.6156]
[1727791266036,4.99591221,2589.0,2587.6,1.6156]
[1727791266037,2.4388558,2588.9,2587.6,1.6156]
[1727791266233,4.4131,2588.6,2587.7,3.86439]
[1727791266438,5.99249,2588.4,2587.5,3.86461]
[1727791266632,5.99249,2588.4,2587.2,1.5729]
[1727791266881,3.86354,2588.3,2587.3,3.86501]
[1727791267078,1.579,2587.9,2587.3,3.86502]
[1727791267376,1.579,2587.9,2587.1,3.86522]
[1727791267587,1.579,2587.9,2587.3,3.86491]
[1727791267588,0.32611725,2587.8,2587.3,3.86491]
[1727791267735,0.55,2587.8,2586.7,3.86591]
[1727791267936,3.86473,2587.5,2586.5,5.87209592]
[1727791268136,4.99591221,2586.9,2586.5,2.00594592]
[1727791268390,6.58251221,2586.9,2586.5,2.00594592]
[1727791268881,1.5866,2586.9,2586.5,2.00594592]
[1727791269082,3.86604,2586.7,2586.5,2.00594592]
[1727791269294,10.44815221,2586.9,2586.5,2.00594592]
[1727791269295,6.00267,2586.6,2586.5,2.00594592]
[1727791269440,1.5866,2586.6,2586.5,2.00594592]
[1727791269749,2.1366,2586.6,2586.5,2.00594592]
[1727791269956,1.91258022,2586.6,2586.5,2.00594592]
[1727791270177,4.99591221,2586.9,2586.5,2.00594592]
[1727791270481,3.86474,2587.5,2586.6,0.02462557]
[1727791270773,0.32610552,2587.4,2586.8,3.86574]
[1727791270976,5.4059,2587.6,2586.8,3.86574]
[1727791271180,1.5413,2587.6,2586.9,3.07707093]
[1727791271392,1.5413,2587.6,2586.9,3.0]
[1727791271541,3.86522,2587.2,2586.5,6.8662]
[1727791271739,3.86522,2587.2,2585.8,4.25477]
[1727791271740,3.86593,2586.7,2585.9,3.86708]
[1727791271984,3.86579,2586.8,2585.8,4.25474]
[1727791272288,1.6078,2586.3,2585.8,0.3875]
[1727791272487,1.6078,2586.3,2585.4,0.3875]
[1727791272654,1.6078,2586.7,2586.1,3.86672]
[1727791272986,0.65372122,2587.5,2586.3,3.86641]
[1727791272987,1.6078,2587.2,2586.3,3.86641]
[1727791273222,1.6078,2587.2,2585.7,1.9897]
[1727791273420,1.6078,2587.2,2586.6,3.86606]
[1727791273595,1.6078,2587.2,2586.7,3.0]
[1727791274121,4.99591221,2586.9,2586.4,3.0]
[1727791274339,4.99591221,2586.9,2586.2,3.0]
[1727791274478,1.556,2586.4,2585.8,3.86724]
[1727791274822,1.556,2586.8,2586.2,3.86657]
[1727791275005,3.86454,2587.7,2586.5,3.86609]
[1727791275006,1.6452,2587.2,2586.5,3.86609]
[1727791275337,1.6452,2587.6,2587.0,3.86533]
[1727791275644,1.6452,2587.6,2586.6,0.07731239]
[1727791275645,1.6452,2587.6,2587.3,3.86501]
[1727791275833,1.6452,2587.6,2586.9,3.0]
[1727791275980,1.5717,2588.0,2587.4,3.0]
[1727791276180,1.5717,2588.0,2587.7,3.86442]
[1727791276479,1.5717,2588.0,2587.6,3.86453]
[1727791276679,3.55220815,2588.3,2587.2,3.0]
[1727791276877,7.41585815,2588.3,2587.4,3.86477]
[1727791277114,5.17973819,2588.3,2587.6,3.86446]
[1727791277317,5.17973819,2588.3,2587.5,0.07594397]
[1727791277318,3.55220815,2588.3,2587.2,6.8651]
[1727791277516,3.55220815,2588.3,2587.5,6.86469]
[1727791277691,3.86382,2588.2,2587.5,3.0]
[1727791277887,4.99176782,2588.2,2587.5,3.0]
[1727791278126,1.5762,2588.0,2587.3,3.0]
[1727791278331,5.44027,2588.0,2587.3,3.0]
[1727791278514,3.86469,2587.6,2586.9,3.86557]
[1727791278824,3.86469,2587.6,2586.7,3.86592]
[1727791278825,4.99591221,2587.3,2586.7,3.86592]
[1727791279027,1.5627,2587.5,2586.6,3.86603]
[1727791279183,1.5627,2588.0,2586.7,0.07730011]
[1727791279391,1.5627,2588.0,2587.2,3.86504]
[1727791279685,5.42669,2588.0,2587.2,3.86504]
[1727791280186,1.5627,2588.0,2587.4,3.86488]
[1727791280421,1.5627,2588.0,2587.6,3.86447]
[1727791280739,1.5627,2588.0,2587.5,3.86461]
[1727791280740,3.53710815,2588.3,2587.5,3.86461]
[1727791281107,3.53710815,2588.3,2587.6,0.06173146]
[1727791281422,3.53710815,2588.3,2586.6,4.25348]
[1727791281423,3.86438,2587.8,2587.1,1.617]
[1727791281590,1.5424,2588.1,2587.7,3.86431]
[1727791281794,1.5424,2588.1,2587.2,0.0772958]
[1727791281795,1.5424,2588.1,2587.6,0.07728035]
[1727791281986,4.99591221,2588.5,2587.6,0.07728035]
[1727791281987,1.5424,2588.5,2587.6,0.07728035]
[1727791282190,3.86343,2588.4,2587.8,3.0]
[1727791282400,3.86377,2588.2,2587.6,3.0]
[1727791282690,3.86378,2588.2,2587.6,3.0]
[1727791282889,4.79033,2588.4,2587.4,3.0]
[1727791282890,6.50671221,2588.1,2587.4,3.0]
[1727791283103,1.5108,2588.1,2587.6,3.86449]
[1727791283326,1.5108,2588.1,2587.3,3.0]
[1727791283489,1.5314,2588.5,2588.0,3.86395]
[1727791283915,1.5314,2588.5,2588.0,3.04339739]
[1727791284086,1.5314,2588.5,2587.8,3.0]
[1727791284087,3.86279,2588.8,2588.1,3.9354046]
[1727791284291,0.540819,2588.8,2588.1,3.86371]
[1727791284509,1.5454,2588.9,2587.9,3.86407]
[1727791284759,1.5454,2588.9,2588.4,3.86337]
[1727791284909,3.86228,2589.2,2588.3,1.5106]
[1727791284910,1.617,2589.2,2588.3,1.5106]
[1727791285108,9.34158,2589.2,2588.5,3.86315]
[1727791285329,9.34158,2589.2,2588.4,3.0]